Cogmind - Beta 13 @@@ ROGUE MODE // 2024.04.21 @ 19:43:26 Player: Bace Troncons Result: Destroyed by Y-45 Defender with Beam Rifle Performance ------------- Evolutions (0) 0 Regions Visited (2) 400 Robots Destroyed (36) 180 Value Destroyed (713) 713 Prototype IDs (5) 100 Alien Tech Used (0) 0 Bonus (0) 0 TOTAL SCORE: 1393 Bonus ------- None Cogmind --------- Core Integrity 0/250 Matter 198/300 Energy 265/265 System Corruption 0% Temperature Hot (241) Movement Treading (160) Location -10/Mines Parts ------- > --- POWER (1) -------- Improved Ion Engine > --- PROPULSION (2) --- Light Treads > --- UTILITY (2) ------ Signal Interpreter > --- WEAPON (2) ------- Improved Light Cannon Improved Light Cannon > --- INVENTORY (5) ---- Improved Ion Engine Large Storage Unit Grenade Launcher Datajack Flail Peak State ------------ > --- POWER ------------ Improved Ion Engine > --- PROPULSION ------- Light Treads Light Treads > --- UTILITY ---------- Large Storage Unit Hacking Suite > --- WEAPON ----------- Improved Light Cannon Improved Light Cannon > --- INVENTORY -------- Ion Engine Ion Engine Light Ion Engine Light Treads Aluminum Leg Aluminum Leg Aluminum Leg Light Assault Rifle Light Assault Rifle Improved Light Cannon Datajack Datajack [Rating: 13] Favorites ----------- Power Improved Ion Engine Engine Improved Ion Engine Propulsion Light Treads Treads Light Treads Leg Aluminum Leg Utility Hacking Suite Storage Large Storage Unit Processor Signal Interpreter Hackware Hacking Suite Weapon Improved Light Cannon Energy Gun Small Laser Ballistic Gun Light Assault Rifle Ballistic Cannon Improved Light Cannon Launcher Grenade Launcher Special Melee Weapon Datajack Build | -11 -10 -10 ------- Run | Yrd Mat Min Slots Evolved . | . . . Power . | . . . Propulsion . | . . . Utility . | . . . Weapon . | . . . Parts Attached 35 | 8 27 . Power 6 | 1 5 . Engine 6 | 1 5 . Core . | . . . Reactor . | . . . Propulsion 10 | 2 8 . Treads 8 | 2 6 . Leg 2 | . 2 . Wheel . | . . . Hover . | . . . Flight . | . . . Utility 5 | 1 4 . Device . | . . . Storage 2 | 1 1 . Processor 2 | . 2 . Hackware 1 | . 1 . Protection . | . . . Artifact . | . . . Weapon 14 | 4 10 . Energy Gun 1 | 1 . . Energy Cannon . | . . . Ballistic Gun 8 | 3 5 . Ballistic Cannon 3 | . 3 . Launcher 1 | . 1 . Special Weapon . | . . . Impact Weapon . | . . . Slashing Weapon . | . . . Piercing Weapon . | . . . Special Melee Weapon 1 | . 1 . Unidentified Prototypes . | . . . Parts Lost 5 | . 3 2 Power 1 | . 1 . Propulsion 2 | . 1 1 Utility 1 | . . 1 Weapon 1 | . 1 . Highest Loss Streak 2 | . 2 2 To Critical Strikes . | . . . Average Slot Usage (%) 99 | . 99 95 Engine 13 | . 13 14 Treads 27 | . 27 25 Storage 12 | . 13 . Processor 1 | . 1 14 Hackware 13 | . 13 12 Ballistic Gun 12 | . 13 . Ballistic Cannon 13 | . 12 28 Special Melee Weapon 1 | . 1 . Naked Turns . | . . . Heaviest Build 35 | 13 35 15 Greatest Support 40 | 40 40 40 Greatest Overweight (x) 8 | . 8 . Average Overweight (x) . | . . . Largest Inventory Capacity 15 | 8 15 5 Average Capacity 12 | 6 13 5 Most Carried 14 | 3 14 5 Average Carried 8 | 2 8 5 Final Capacity 8 | 8 5 5 Final Carried 5 | 3 5 5 Class Distribution -------------------- 100% | Mutant Dominant Class ---------------- Mutant | -10/Materials Mutant | -10/Mines Resources | -11 -10 -10 ----------- Run | Yrd Mat Min Matter Collected 980 | 253 618 109 Remotely . | . . . Salvage Created 820 | . 695 125 Parts 70 | . 59 11 Haulers Intercepted 2 | . 2 . Recyclers Shooed 1 | . 1 . Parts Field Recycled . | . . . Retrieved Matter . | . . . Parts Self-Destructed . | . . . Prevented . | . . . Kills | -11 -10 -10 ------- Run | Yrd Mat Min Combat Hostiles Destroyed 25 | . 19 6 Guns 15 | . 15 . Cannons 8 | . 2 6 AOE 2 | . 2 . Classes Destroyed 8 | . 7 1 Worker 2 | . 1 1 Builder 1 | . 1 . Hauler 2 | . 2 . Operator 3 | . 3 . Watcher 3 | . 3 . Swarmer 12 | . 9 3 Grunt 12 | . 10 2 Sentry 1 | . . 1 Best Kill Streak 5 | . 5 2 Combat Bots Only 4 | . 4 2 Max Kills in Single Turn 1 | . 1 1 Gunslinging . | . . . Exploded 1 | . 1 . Melee . | . . . Uniques/NPCs Destroyed . | . . . Combat | -11 -10 -10 -------- Run | Yrd Mat Min Hostile Shots Fired 158 | . 124 34 Missed 35 | . 27 8 Damage Taken 1224 | . 873 351 Core 250 | . 159 91 Absorbed by Shields . | . . . Regen/Repaired (Parts) 154 | . 154 . Core Remaining (%) 100 | 100 . . Volleys Fired 110 | . 96 14 Largest 2 | . 2 2 Hottest 78 | . 78 78 Shots Fired 215 | . 187 28 Gun 147 | . 147 . Cannon 65 | . 37 28 Launcher 3 | . 3 . Special . | . . . Kinetic 212 | . 184 28 Thermal . | . . . Explosive 3 | . 3 . Electromagnetic . | . . . Robot Hit Streak 7 | . 6 7 Robot Miss Streak 5 | . 5 2 Penetration Max . | . . . Secondary Targets . | . . . Shots Hit Robots 121 | . 104 17 Core Hits 50 | . 44 6 Critical Kills . | . . . Critical Parts Destroyed . | . . . Critical Strikes 4 | . 1 3 Blast 4 | . 1 3 Melee Attacks 4 | . 4 . Impact . | . . . Slashing . | . . . Piercing . | . . . Sneak Attacks 3 | . 3 . Combat Hostiles . | . . . Follow-up Attacks . | . . . Damage Inflicted 1773 | . 1377 396 Guns 791 | . 791 . Cannons 795 | . 399 396 Explosions 184 | . 184 . Melee . | . . . Ramming 3 | . 3 . Kinetic 1586 | . 1190 396 Thermal . | . . . Explosive 184 | . 184 . Electromagnetic . | . . . Impact . | . . . Slashing . | . . . Piercing . | . . . Highest Corruption . | . . . Average Corruption . | . . . Corruption Purged . | . . . Corruption Blocked . | . . . Overload Shots . | . . . Overflow Damage 33 | . 33 . Projectiles 17 | . 17 . Explosions 16 | . 16 . Melee . | . . . Knockbacks 3 | . 2 1 Impact . | . . . Kinetic 3 | . 2 1 Secondary . | . . . Self-Inflicted Damage . | . . . Shots . | . . . Rammed 1 | . 1 . Targets Rammed 1 | . 1 . Kicked . | . . . Crushed . | . . . Highest Temperature 232 | . 88 232 Average Temperature 43 | . 28 74 Received Heat Transfer 321 | . 174 147 Siege Activations . | . . . Robots Corrupted . | . . . Combat Hostiles . | . . . Parts Fried . | . . . Impact Corruptions . | . . . Robots Melted . | . . . Combat Hostiles . | . . . Parts Melted . | . . . Heat Transferred . | . . . Parts Sabotaged . | . . . Parts Stolen . | . . . Parts Stripped . | . . . Power Chain Reactions . | . . . Alert | -11 -10 -10 ------- Run | Yrd Mat Min Peak Influence 269 | . 269 178 Initial 21 | . . 21 Average 73 | . 73 118 Maximum Alert Level 1 | . 1 . Low Security (%) 94 | 100 93 100 Level 1 5 | . 6 . Level 2 . | . . . Level 3 . | . . . Level 4 . | . . . Level 5 . | . . . High Security . | . . . Max Security . | . . . Squads Dispatched 6 | . 6 . Investigation 4 | . 4 . Extermination . | . . . Reinforcement 2 | . 2 . Assault . | . . . Garrison . | . . . Intercept . | . . . Searches Triggered . | . . . Construction Impeded . | . . . Haulers Reinforced . | . . . Active Scanning Responses . | . . . Cargo Convoy Interrupts . | . . . Stealth | -11 -10 -10 --------- Run | Yrd Mat Min Distress Signals 2 | . 2 . Communications Jammed . | . . . Distress Signals . | . . . Times Spotted 44 | . 37 7 Peak Tracking Total 4 | . 4 3 Tactical Retreats 3 | . 2 1 Traps | -11 -10 -10 ------- Run | Yrd Mat Min Traps Triggered 1 | . 1 . Indirectly . | . . . Trap Hack Attempts . | . . . Triggered . | . . . Disarmed . | . . . Reprogrammed . | . . . Reused . | . . . Traps Extracted . | . . . Installed . | . . . Triggered . | . . . Machines | -11 -10 -10 ---------- Run | Yrd Mat Min Machines Disabled 2 | . 2 . Max in Single Turn 1 | . 1 . Machines Repaired . | . . . Machines Dismantled . | . . . Machines Sabotaged . | . . . Overloaded Fab Kills . | . . . Hacking | -11 -10 -10 --------- Run | Yrd Mat Min Machines Accessed 9 | . 9 . Terminals 6 | . 6 . Fabricators . | . . . Repair Stations 1 | . 1 . Recycling Units 2 | . 2 . Scanalyzers . | . . . Garrison Access . | . . . Total Hacks 44 | . 44 . Successful 21 | . 21 . Failed 23 | . 23 . Catastrophic 4 | . 4 . Database Lockouts . | . . . Manual 23 | . 23 . Terminals 35 | . 35 . Fabricators . | . . . Repair Stations 6 | . 6 . Recycling Units 3 | . 3 . Scanalyzers . | . . . Garrison Access . | . . . Terminal Hacks 15 | . 15 . Record 1 | . 1 . Prototype ID Bank 4 | . 4 . Emergency Access Points 1 | . 1 . Terminal Index 1 | . 1 . Repair Station Index 1 | . 1 . Recycling Unit Index 1 | . 1 . Locate Traps 2 | . 2 . Transport Status 1 | . 1 . Coupling Status 1 | . 1 . Hauler Manifests 1 | . 1 . Zone Layout 1 | . 1 . Fabricator Hacks . | . . . Repair Station Hacks 5 | . 5 . Scan Component 3 | . 3 . Repair 2 | . 2 . Recycling Unit Hacks 1 | . 1 . Retrieve Components 1 | . 1 . Scanalyzer . | . . . Garrison Access Hacks . | . . . Unauthorized Hacks . | . . . Terminals . | . . . Fabricators . | . . . Repair Stations . | . . . Recycling Units . | . . . Scanalyzers . | . . . Garrison Access . | . . . Data Cores Recovered . | . . . Used . | . . . Hacking Detections 8 | . 8 . Full Trace Events 8 | . 8 . Feedback Events . | . . . Feedback Blocked . | . . . Robot Schematics Acquired . | . . . Robots Built . | . . . Authchips . | . . . Time . | . . . Total Robot Build Rating . | . . . Part Schematics Acquired . | . . . Parts Built . | . . . Authchips . | . . . Time . | . . . Total Part Build Rating . | . . . Parts Repaired 2 | . 2 . Time 52 | . 52 . Parts Recycled . | . . . Recycled Matter . | . . . Retrieved Matter . | . . . Retrieved Components 9 | . 9 . Parts Scanalyzed . | . . . Part Schematics Acquired . | . . . Parts Damaged . | . . . Bothacking | -11 -10 -10 ------------ Run | Yrd Mat Min Used RIF Installer . | . . . Robots Hacked 4 | . 4 . Non-combat 3 | . 3 . Combat 1 | . 1 . Robot Hacks Applied 4 | . 4 . parse_system 4 | . 4 . Relay Couplers Released . | . . . Fabnet Peak Effective % . | . . . Robots Rewired . | . . . Allies Hacked . | . . . Hacks Repelled . | . . . Allies | -11 -10 -10 -------- Run | Yrd Mat Min Total Allies . | . . . Largest Group . | . . . Highest-Rated Group . | . . . Highest-Rated Ally . | . . . Total Orders . | . . . Ally Attacks . | . . . Total Damage . | . . . Kills . | . . . Allies Corrupted . | . . . Allies Melted . | . . . Intel | -11 -10 -10 ------- Run | Yrd Mat Min Robot Analysis Total . | . . . Derelict Logs Recovered 1 | . . 1 Drone Launches . | . . . Drone Recoveries . | . . . Exploration | -11 -10 -10 ------------- Run | Yrd Mat Min Turns Passed 2809 | 96 2545 168 Spaces Moved 1368 | 53 1237 78 Core 5 | 4 1 . Treads 1355 | 49 1228 78 Legs 8 | . 8 . Wheels . | . . . Hover . | . . . Flight . | . . . Fastest Speed 50 | 50 120 160 Average Speed 159 | 151 160 160 Slowest Speed 450 | 160 450 160 Overloaded Moves . | . . . Propulsion Burnouts . | . . . Robots Hopped . | . . . Cave-ins Triggered . | . . . Exploration Rate (%) 40 | 5 96 19 Regions Visited 2 Branch Regions 1 Pre-discovered Areas . | . . . Known Exits Taken 1 | . 1 . Unknown Exits Taken 1 | 1 . . Scrap Searched . | . . . Spaces Dug . | . . . Terrain Destroyed 34 | . 32 2 Melee . | . . . Projectile 7 | . 5 2 AOE 27 | . 27 . Terrain Rammed . | . . . Walls Destroyed . | . . . Machines Disabled . | . . . Actions | -11 -10 -10 --------- Run | Yrd Mat Min Total 1787 | 65 1627 95 Wait 231 | 1 227 3 Move 1366 | 52 1236 78 Hop . | . . . Pick Up 21 | 3 18 . Fast Attach 15 | 6 9 . Attach 2 | . 2 . Detach 3 | . 3 . Swap 18 | 2 16 . Drop 16 | 1 15 . Fire 110 | . 96 14 Melee 4 | . 4 . Ram . | . . . Kick . | . . . Crush 1 | . 1 . Escape Stasis . | . . . Rewire . | . . . Trap . | . . . Miscellaneous . | . . . Route ------- -11/Scrapyard -10/Materials (discovered 5 exits: *Mat x3 / *Min x2) -10/Mines (discovered 1 exit: Exi) History --------- Turn | Location | Event 8 | -11/Scrapyard | Discovered new exit (range 14) 97 | -11/Scrapyard | Entered Materials 309 | -10/Materials | Build established: Mutant 514 | -10/Materials | Discovered new exit (range 8) 640 | -10/Materials | Discovered new exit (range 16) 816 | -10/Materials | Core integrity fell below 50% 965 | -10/Materials | Discovered new exit (range 9) 1293 | -10/Materials | Discovered new exit (range 10) 1436 | -10/Materials | Repaired Lgt. Treads 1464 | -10/Materials | Repaired Lgt. Assault Rifle 1872 | -10/Materials | Discovered new exit (range 6) 2567 | -10/Materials | Identified exit to Materials 2638 | -10/Materials | Identified exit to Mines 2642 | -10/Materials | Entered Mines 2751 | -10/Mines | Identified exit to Exiles 2805 | -10/Mines | Core integrity fell below 20% 2810 | -10/Mines | Destroyed by Y-45 Defender with Beam Rifle Last Messages --------------- 02693_ S-10 Pest suffers critical hit (Blast). 02693_ S-10 Pest destroyed. 02699_ S-10 Pest Lgt. Assault Rifle blasted off. 02699_ S-10 Pest destroyed. 02702_ Acquired 10 matter. 02704_ Acquired 2 matter. 02705_ Acquired 14 matter. 02751_ Acquired derelict log, extracted data. 02756_ S-10 Pest suffers critical hit (Blast). 02756_ S-10 Pest destroyed. 02759_ Acquired 6 matter. 02765_ K-01 Serf collects debris. 02784_ Lgt. Treads destroyed. 02793_ Critical hit (Burn: +37). 02793_ Hacking Suite destroyed. 02800_ K-01 Serf collects debris. 02800_ Y-45 Defender destroyed. 02801_ Critical hit (Burn: +37). 02803_ K-01 Serf collects debris. 02809_ K-01 Serf destroyed. Map ----- +----------------------------------------------------+ | ?????????????????????????????????????????????????? | | ?????????????????????????????????????????????????? | | ?????????????????????????????????????????????????? | | ?????????????????????????????????????????????????? | | ?????????????????????????????????????????????????? | | ?????????????????????????????????????????????????? | | ?????????????????????????????????????????????????? | | ?????????????????????????????????????????????????? | | ?????????????????????????????????????????????????? | | ?????????????????????????????????????????????????? | | ?????????????????????????????????????????????????? | | ?????????????????????????????????????????????????? | | ?????????????????????????????????????????????????? | | ???????????????????????????##????????????????????? | | ??????????????????????????? #????????????????????? | | ??????????????????????????? #????????????????????? | | ??????????????????????????? ##???????????????????? | | ??????????????????????????? ##??????????????????? | | ?????????????????????###?## #??????????????????? | | ????????????????????##" ##$ ##?????????????????? | | ????????????????????#"" # ##????????????????? | | ??#####?????????????#!! + #????????????????? | | ?## ##????????????#]! + % ##???????????????? | | ## ##???????????#"" # #???????????????? | | ###?????????##" ##%Y%% #???????????????? | | ##???#?????####@ %= ##???????????????? | | ## #?????### ######????????????????? | | #????## ##?????????????????????? | | #????# ##??????????????????????? | | #???????# #???????????????????????? | | ##???????## ##???????????????????????? | | #### #######?????????## #????????????????????????? | | ???# ###[#??????####### #????????????????????????? | | ???#* =#??????#[ = #????????????????????????? | | ???#####*#??????#=##### #????????????????????????? | | ????####=#??????# #???# #????????????????????????? | | ???## ## #??????# #???# #????????????????????????? | | #### # ######## #???# #????????????????????????? | | #"# #???# #????????????????????????? | | # ############???# #????????????????????????? | | = ##??????????????# #????????????????????????? | | [ #???????######??? ?????????????????????????? | | # ##???? ???? ?????????????????????????? | | #### ### #???????#?????????????????????????? | | ???## #??????????????????????????????????? | | ????# #???????????????????????????????????? | | ???# ##???????????????????????????????????? | | ?? ##????????????????????????????????????? | | #?????????????????????????????????????? | | #### ##?????????????????????????????????????? | +----------------------------------------------------+ Best States ------------- Heat Dissipation 25 Energy Generation 12 Energy Capacity 265 Matter Stores 300 Matter Capacity 300 Sight Range 16 Terrain Scan Density 10 Evasion (%) 40 Recoil Reduction 2 Offensive Hacking 10 Item Schematics ----------------- None Robot Schematics ------------------ None Fabricated ------------ Nothing Alien Tech Used ----------------- None Achievements -------------- None Challenges ------------ None Game ------ Seed RelayStormPrototype Manual? 0 Play Time 00:26:31 Cumulative 36.9 hours Start 2024.04.21 @ 19:17:40 End 2024.04.21 @ 19:43:26 Sessions 1 Manual Loads 0 Difficulty Rogue Special Mode None Game No. 59 Rogue 59 Adventurer 0 Explorer 0 Win Type - Total 0 Types 0/0/0/0/0/0/0/0/0 Lore% 22 Gallery% 29 Achievement% 24 Wizard Run 0 Options --------- Layout 1 ASCII 0 Keyboard 1 Movement Numpad Keybinds 0 Fullscreen 1 Font 24/Smallcaps Map View 50x35 Zoom Use 0% Tactical HUD 1 Map Filters NONE Filters NONE Steam 1 RUN: aadebd48-43c3-4001-b237-9348d3f2f77f